{"text_format":"1","workbook":"xlsx","n_sheets":49,"sheets":["modProv","Инструкция","Лог обновления","Титульный","Территории","Дифференциация","Форма 1.0.1","Форма 4.11","Сведения об изменении","Форма 1.0.2","Комментарии","Проверка","modReestr","AllSheetsInThisWorkbook","TEHSHEET","modCheckCyan","modInfo","et_union_hor","et_union_vert","modList00","modList01","modList02","modList03","modList04","modList07","modList09","modHTTP","modfrmRegion","MR_LIST","REESTR_VT","REESTR_VED","modfrmReestrObj","DataOrg","modfrmReestr","modUpdTemplMain","REESTR_ORG","modClassifierValidate","modHyp","modfrmDateChoose","modComm","modThisWorkbook","REESTR_MO","REESTR_MO_FILTER","modfrmReestrMR","modServiceModule","modfrmCheckUpdates","REESTR_DS","REESTR_CHS","REESTR_LINK"],"not_rendered":{"charts":0,"images":22,"macros":1,"external_links":0,"defined_names":178,"comments":3,"pivot_tables":0},"unopened":[],"bounds":{"document_bytes":16777216,"sheet_cells":100000,"rows_first":2000,"rows_last":500,"rows_between":2000,"halvings":0,"cell_chars":16384,"cell_head_chars":4096},"cells_cut":0,"cells_raw":0,"read":"whole","date_system":"1900"}

{"sheet":"modProv","index":0,"n_rows":0,"n_cols":0,"rows_kept":0,"cut":false,"hidden":true,"merged":[]}

{"sheet":"Инструкция","index":1,"n_rows":83,"n_cols":27,"rows_kept":83,"cut":false,"hidden":false,"merged":[[82,5,82,23],[60,7,60,23],[78,4,78,23],[72,5,72,23],[73,5,73,23],[74,4,74,23],[75,4,75,23],[76,4,76,23],[77,4,77,23],[69,4,69,19],[39,4,39,23],[40,4,44,23],[45,4,56,23],[80,5,80,18],[58,4,58,6],[58,7,58,23],[59,4,59,6],[71,5,71,23],[57,4,57,20],[70,4,70,19],[34,4,38,23],[22,15,22,22],[21,5,21,12],[1,1,1,6],[2,1,2,2],[4,1,4,24],[6,4,18,23],[20,5,20,12],[20,15,20,23],[21,15,21,23]]}
[null,null,null,null,null,null,null,null,null,null,null,null,null,null,null,null,null,null,null,null,null,null,null,null,null,null," (требуется обновление)"]
[null,{"$f":"\"Код шаблона: \" & GetCode()","v":"Код шаблона: FAS.JKH.OPEN.INFO.LIMIT.WARM"}]
[null,{"$f":"\"Версия \" & Getversion()","v":"Версия 1.0.1"}]
[]
[null,{"$f":"Титульный!E5","v":"Информация о выводе объектов теплоснабжения из эксплуатации и основаниях ограничения, прекращения подачи тепловой энергии потребителям"}]
[]
[null,null,null,null,"• На рабочем месте должен быть установлен MS Office 2007 SP3, 2010, 2013, 2016 с полной версией MS Excel\n\n• Макросы во время работы должны быть включены (!)\n\n• Для корректной работы отчёта требуется выбрать низкий уровень безопасности\n(В меню MS Excel 2007/2010/2013/2016: Параметры Excel | Центр управления безопасностью | Параметры центра управления безопасностью | Параметры макросов | Включить все макросы | ОК)\n\n• Если Вы работаете в табличном процессоре MS Excel 2007 и выше, то можете использовать для работы формат XLSB (Двоичная книга Excel). При работе в формате XLSB заметно быстрее происходит сохранение файла, а также уменьшается размер по сравнению с форматами XLS и XLSM\n\n• Не рекомендуется снимать защиту с листов и каким-либо образом модифицировать защищаемые формулы и расчётные поля, в противном случае, отчёт будет отклонён системой\n\n• При сохранении не следует выбирать формат XLSX (Книга Excel), так как в указанном формате макросы, необходимые для работы отчёта, безвозвратно удаляются"]
[]
[]
[]
[]
[]
[]
[]
[]
[]
[]
[]
[]
[]
[null,null,null,null,"A"," - не обязательные для заполнения",null,null,null,null,null,null,null,null,"A"," - с формулами и константами"]
[null,null,null,null,"A"," - обязательные для заполнения",null,null,null,null,null,null,null,null,"A"," - с выбором значений до двойному клику"]
[]
[]
[]
[]
[]
[]
[]
[]
[]
[]
[]
[]
[null,null,null,null,"Если в предложенном Вам списке необходимая организация, МР/МО отсутствуют, обновите реестры с помощью кнопок\n\nВ результате синхронизации с базой данных список организаций (МР/МО) будет заменён актуальным (механизм синхронизации требует подключения к сети Интернет и основан на использовании протокола HTTPS (TCP порт 443))\n\nЕсли после обновления Вам не удалось найти необходимую организацию в списке, обратитесь к ответственному за поддержание реестра Вашего региона."]
[]
[]
[]
[]
[]
[]
[]
[]
[]
[]
[null,null,null,null,"• При сохранении шаблона осуществляется проверка корректности данных, в том числе на наличие значений в ячейках, обязательных для заполнения\n\n• Если какая-то ячейка не удовлетворяет условию проверки, на лист «Проверка» добавляется гиперссылка на данную ячейку и указывается причина ошибки\n\n• В колонке «Статус» для каждого сообщения возможны 2 значения: ошибка и предупреждение\n\n• При наличии сообщений со статусом «Ошибка» шаблон будет отклонён системой и не будет загружен в хранилище данных, сообщения со статусом «Предупреждение» носят информационный характер, и такой шаблон будет принят системой"]
[]
[]
[]
[]
[]
[]
[]
[]
[]
[]
[]
[null,null,null,null,"Обратиться за помощью в службу технической поддержки"]
[]
[]
[]
[]
[]
[]
[]
[]
[]
[]
[]
[null,null,null,null,"Инструкция по загрузке сопроводительных материалов"]
[null,null,null,null,"Инструкция по работе с отчетной формой"]
[]
[]
[]
[]
[]
[]
[]
[null,null,null,null,"При наличии подключения к Интернет, можно автоматически проверять наличие доступных обновлений. Выберите способ оповещения о наличии обновлений для отчёта:"]
[]
[null,null,null,null,null,"проверять доступные обновления (рекомендуется)",null,null,null,null,null,null,null,null,null,null,null,null,null,null,null,null,null,null,null,null,"y"]
[]
[null,null,null,null,null,"никогда не проверять наличие обновлений (не рекомендуется)"]

{"sheet":"Лог обновления","index":2,"n_rows":15,"n_cols":3,"rows_kept":15,"cut":false,"hidden":true,"merged":[]}
["Дата/Время","Сообщение","Статус"]
["2022-04-01T09:29:10","Проверка доступных обновлений...","Информация"]
["2022-04-01T09:29:11","Нет доступных обновлений для отчёта с кодом FAS.JKH.OPEN.INFO.LIMIT.WARM!","Информация"]
["2022-04-01T09:29:21","Проверка доступных обновлений...","Информация"]
["2022-04-01T09:29:22","Нет доступных обновлений для отчёта с кодом FAS.JKH.OPEN.INFO.LIMIT.WARM!","Информация"]
["2022-04-01T09:29:41","Проверка доступных обновлений...","Информация"]
["2022-04-01T09:29:42","Нет доступных обновлений для отчёта с кодом FAS.JKH.OPEN.INFO.LIMIT.WARM!","Информация"]
["2022-04-01T09:32:46","Проверка доступных обновлений...","Информация"]
["2022-04-01T09:32:47","Нет доступных обновлений для отчёта с кодом FAS.JKH.OPEN.INFO.LIMIT.WARM!","Информация"]
["2022-04-04T09:20:39","Проверка доступных обновлений...","Информация"]
["2022-04-04T09:20:41","Нет доступных обновлений для отчёта с кодом FAS.JKH.OPEN.INFO.LIMIT.WARM!","Информация"]
["2022-04-04T09:21:55","Проверка доступных обновлений...","Информация"]
["2022-04-04T09:21:58","Нет доступных обновлений для отчёта с кодом FAS.JKH.OPEN.INFO.LIMIT.WARM!","Информация"]
["2022-04-08T08:29:21","Проверка доступных обновлений...","Информация"]
["2022-04-08T08:29:23","Нет доступных обновлений для отчёта с кодом FAS.JKH.OPEN.INFO.LIMIT.WARM!","Информация"]

{"sheet":"Титульный","index":3,"n_rows":45,"n_cols":6,"rows_kept":45,"cut":false,"hidden":false,"merged":[[4,4,4,5],[44,4,44,5]]}
[null,null,null,null,null,30919361]
[]
[]
[null,null,null,null,null,{"$f":"version","v":"Версия 1.0.1"}]
[null,null,null,null,"Информация о выводе объектов теплоснабжения из эксплуатации и основаниях ограничения, прекращения подачи тепловой энергии потребителям"]
[]
[null,null,null,null,"Субъект РФ","Ярославская область"]
[]
[null,null,null,null,"Публикация2","На сайте регулирующего органа"]
[]
[null,null,null,null,"Отсутствует Интернет в границах территории МО, где организация осуществляет регулируемые виды деятельности","нет"]
[]
[null,null,null,null,"Тип отчета","первичное раскрытие информации"]
[null,null,null,null,"Дата внесения изменений в информацию, подлежащую раскрытию","01.04.2022"]
[]
[null,null,null,null,"Применяется дифференциация тарифа по централизованным системам теплоснабжения?"]
[null,null,null,null,"Информация по скольким централизованным системам теплоснабжения будет заполнена в шаблоне?"]
[]
[null,null,null,null,null,"Отчетный период"]
[null,null,2022,null,"Год",2022]
[null,null,"I квартал",null,"Квартал","I квартал"]
[]
[null,null,null,null,"Является ли данное юридическое лицо подразделением (филиалом) другой организации","нет"]
[]
[]
[null,null,null,null,"Наименование организации","АО \"Ярославские ЭнергоСистемы\""]
[null,null,null,null,"Наименование филиала"]
[null,null,null,null,"ИНН","7603066822"]
[null,null,null,null,"КПП","760301001"]
[null,null,null,null,"Вид деятельности"]
[]
[null,null,null,null,"Тип теплоснабжающей организации","Регулируемая организация"]
[]
[null,null,null,null,"Почтовый адрес регулируемой организации","150055, г. Ярославль, ул. Красноборская, д. 5 корп. 1"]
[null,null,null,null,"Фамилия, имя, отчество руководителя","Клейнбурд Евгений Ильич"]
[]
[null,null,null,null,null,"Ответственный за составление формы"]
[null,null,null,null,"Фамилия, имя, отчество","Воробьев Юрий Владимирович"]
[null,null,null,null,"Должность","Начальник ПЭО"]
[null,null,null,null,"(код) номер телефона","(4852) 23-48-40"]
[null,null,null,null,"e-mail","vuv@yarensys.ru"]
[]
[]
[]
[null,null,null,null,"В соответствии с пунктом 33.12 Постановления Правительства РФ от 5 июля 2013 г. № 570 \"О стандартах раскрытия информации теплоснабжающими организациями, теплосетевыми организациями и органами регулирования\" теплоснабжающей организацией и теплосетевой организацией в ценовых зонах теплоснабжения информация категории \"о наличии (об отсутствии) технической возможности подключения (технологического присоединения) к системе теплоснабжения, а также о регистрации и ходе реализации заявок на подключение (технологическое присоединение) к системе теплоснабжения\" раскрытию не подлежит"]

{"sheet":"Территории","index":4,"n_rows":17,"n_cols":18,"rows_kept":17,"cut":false,"hidden":false,"merged":[[12,7,14,7],[11,2,15,2],[11,3,15,3],[11,4,15,4],[12,5,14,5],[12,6,14,6],[8,5,8,6],[8,8,8,9],[9,5,9,6],[9,8,9,9],[3,3,3,7],[5,3,5,4],[5,5,5,6],[7,3,7,4],[7,5,7,7],[7,8,7,11]]}
[null,null,null,null,null,null,null,null,null,null,"МО","ОКТМО","МР"]
[]
[]
[null,null,null,"Перечень муниципальных районов и муниципальных образований (территорий действия тарифа)"]
[]
[null,null,null,null,null,"да"]
[]
[null,null,null,"Территория действия тарифа",null,"Муниципальный район",null,null,"Муниципальное образование"]
[null,null,null,"№ п/п","Наименование","№ п/п",null,"Наименование","№ п/п",null,"Наименование","ОКТМО"]
[null,null,null,"1","2","3",null,"4","5",null,"6","7"]
[null,null,null,0,null,"",null,null,"",null,null,null,"размерженный МР",null,null,"флаг используемости территории на листе Перечень тарифов","копия территорий","МР (ОКТМО)"]
[null,"auto",null,1,"город Ярославль, город Ярославль (78701000);","",0,null,"","0",null,null,{"$f":"mergeValue(H12)","v":0},null,null,{"$f":"IF(ISERROR(MATCH(MID(Q12,1,250),MID(note_ter,1,250),0)),\"n\",\"y\")","v":"n"},"город Ярославль, город Ярославль (78701000);",{"$f":"K12&\"(\"&L12&\")\"","v":"()"}]
[null,"auto",null,null,null,"",1,"город Ярославль","","0",null,null,{"$f":"mergeValue(H13)","v":"город Ярославль"},null,null,null,null,{"$f":"K13&\"(\"&L13&\")\"","v":"()"}]
[null,"auto",null,null,null,null,null,null,"",1,"город Ярославль","78701000",{"$f":"mergeValue(H14)","v":"город Ярославль"},null,null,null,null,{"$f":"K14&\" (\"&L14&\")\"","v":"город Ярославль (78701000)"}]
[null,null,null,null,null,null,null,null,"",null,""]
[null,null,null,null,null,"","","",""]
[null,"man",null,null,"","",null,null,"",null,null,null,null,null,null,null,"Добавить территорию действия тарифа"]

{"sheet":"Дифференциация","index":5,"n_rows":26,"n_cols":26,"rows_kept":26,"cut":false,"hidden":false,"merged":[[17,0,18,0],[17,3,17,4],[3,3,3,8],[4,3,4,8],[7,4,7,5],[8,1,8,3],[5,0,6,5],[7,1,7,3],[8,4,8,5],[9,1,9,3],[9,4,9,5],[13,1,13,3],[10,4,10,5],[10,1,10,3],[24,2,25,2],[11,1,11,3],[12,1,12,3],[21,4,23,4],[21,5,23,5],[21,3,23,3],[17,5,17,8],[21,6,22,6],[21,7,22,7],[21,8,22,8],[21,9,22,9],[17,9,17,12],[19,6,19,7],[19,10,19,11],[18,10,18,11],[18,6,18,7]]}
[]
[]
[]
[null,null,null,{"$f":"Титульный!E5","v":"Информация о выводе объектов теплоснабжения из эксплуатации и основаниях ограничения, прекращения подачи тепловой энергии потребителям"}]
[null,null,null,{"$f":"IF(org=0,\"Не определено\",org)","v":"АО \"Ярославские ЭнергоСистемы\""}]
[]
[]
[]
[]
[]
[]
[]
[]
[]
[]
[]
[]
[null,null,null,"Вид деятельности",null,"Дифференциация по территориям оказания услуг",null,null,null,"Дифференциация по централизованным системам коммунальной инфраструктуры"]
[null,null,null,"№ п/п","Наименование","да/нет","№ п/п",null,"Наименование","да/нет","№ п/п",null,"Наименование"]
[null,null,null,"1","2","3","4",null,"5","6","7",null,"8"]
[]
[null,null,null,"1","Передача. Тепловая энергия; Подключение (технологическое присоединение) к системе теплоснабжения","нет",null,1,null,"нет","","1","",null,null,null,null,null,null,null,null,null,null,"4190068;4190072","a",1705000]
[null,null,null,null,null,null,null,null,null,null,"",null,""]
[null,null,null,null,null,null,null,null,"",null,""]
[null,null,null,null,"",null,null,null,null,null,""]
[null,null,null,null,null,null,null,null,null,null,""]

{"sheet":"Форма 1.0.1","index":6,"n_rows":20,"n_cols":7,"rows_kept":20,"cut":false,"hidden":false,"merged":[[19,4,19,5],[4,3,4,6],[5,3,5,6],[7,3,7,6],[8,3,8,5],[8,6,9,6]]}
[null,null,null,null,null,null,4]
[]
[]
[]
[null,null,null,"Форма 1.0.1 Основные параметры раскрываемой информации 1"]
[null,null,null,{"$f":"IF(org=0,\"Не определено\",org)","v":"АО \"Ярославские ЭнергоСистемы\""}]
[]
[null,null,22,"Форма 1.0.1"]
[null,null,null,"Параметры формы",null,null,"Описание параметров формы"]
[null,null,null,"№ п/п","Наименование параметра","Информация"]
[null,null,null,"1",2,3,4]
[null,null,null,1,"Дата заполнения/внесения изменений",{"$f":"IF(form_up_date=\"\",\"\",form_up_date)","v":"01.04.2022"},"Указывается календарная дата первичного заполнения или внесения изменений в форму в виде «ДД.ММ.ГГГГ»."]
[null,null,null,"2.1","Наименование централизованной системы коммунальной инфраструктуры","наименование отсутствует","Указывается наименование централизованной системы холодного водоснабжения/горячего водоснабжения/водоотведения/теплоснабжения, к которой относится размещаемая информация.\nВ случае наличия нескольких централизованных систем коммунальной инфраструктуры, информация по каждой из них указывается в отдельной строке. "]
[null,null,null,"3.1","Наименование регулируемого вида деятельности","Передача. Тепловая энергия; Подключение (технологическое присоединение) к системе теплоснабжения","Указывается наименование вида регулируемой деятельности."]
[null,null,null,"4.1","Территория оказания услуги по регулируемому виду деятельности","x"]
[null,null,null,{"$f":"D15&\".1\"","v":"4.1.1"},"Субъект РФ",{"$f":"IF(region_name=\"\",\"\",region_name)","v":"Ярославская область"},"Указывается наименование субъекта Российской Федерации"]
[null,null,null,"4.1.1.1","муниципальный район","город Ярославль","Указывается наименование муниципального района, на территории которого организация оказывает услуги по регулируемому виду деятельности."]
[null,null,null,"4.1.1.1.1","муниципальное образование","город Ярославль (78701000)","Указывается наименование и код муниципального района, муниципального образования в соответствии с Общероссийским классификатором территорий муниципальных образований (далее - ОКТМО), входящего в муниципальный район, на территории которого организация оказывает услуги по регулируемому виду деятельности.\nВ случае оказания услуг по регулируемому виду деятельности на территории нескольких муниципальных районов (муниципальных образований) данные по каждому их них указываются в отдельной строке."]
[]
[null,null,null,null,"  1 Информация по данной форме публикуется при раскрытии информации по каждой из форм."]

{"sheet":"Форма 4.11","index":7,"n_rows":55,"n_cols":9,"rows_kept":55,"cut":false,"hidden":false,"merged":[[48,1,49,1],[48,2,49,2],[42,1,43,1],[42,2,43,2],[44,1,45,1],[44,2,45,2],[46,1,47,1],[46,2,47,2],[36,1,37,1],[36,2,37,2],[38,1,39,1],[38,2,39,2],[40,1,41,1],[40,2,41,2],[30,1,31,1],[30,2,31,2],[32,1,33,1],[32,2,33,2],[34,1,35,1],[34,2,35,2],[2,2,3,2],[5,2,6,2],[12,2,13,2],[8,2,10,2],[2,1,3,1],[5,1,6,1],[12,1,13,1],[8,1,10,1],[24,8,25,8],[21,3,21,6],[22,3,22,6],[24,3,25,3],[24,4,25,4],[24,5,25,5],[24,6,24,7]]}
[null,null,null,null,null,null,4]
[]
[null,null,null,{"$f":"B3 & \".1\"","v":".1"},"Наименование выведенного источника тепловой энергии","x",null,null,"В случае вывода из эксплуатации нескольких источников тепловой энергии информация по каждому из них указывается в отдельно."]
[null,null,null,{"$f":"B3 & \".2\"","v":".2"},"Дата вывода","x",null,null,"Дата вывода указывается в виде «ДД.ММ.ГГГГ»."]
[]
[null,null,null,{"$f":"B6 & \".1\"","v":".1"},"Наименование тепловой сети","x",null,null,"В случае вывода из эксплуатации нескольких тепловых сетей информация по каждой из них указывается в отдельно."]
[null,null,null,{"$f":"B6 & \".2\"","v":".2"},"Дата вывода","x",null,null,"Дата вывода указывается в виде «ДД.ММ.ГГГГ»."]
[]
[null,null,null,{"$f":"B9 & \".1\"","v":".1"},"Описание ограничения подачи тепловой энергии потребителям","x","",""]
[null,null,null,{"$f":"B9 & \".2\"","v":".2"},"Дата начала ограничения","x","","","Дата начала ограничения указывается в виде «ДД.ММ.ГГГГ»."]
[null,null,null,{"$f":"B9 & \".3\"","v":".3"},"Дата завершения ограничения","x","","","Дата завершения ограничения указывается в виде «ДД.ММ.ГГГГ»."]
[]
[null,null,null,{"$f":"B13 & \".1\"","v":".1"},"Описание прекращения режима потребления","x","","","В колонке «Ссылка на документ» указывается материал в виде ссылки на документ, обосновывающий прекращение подачи тепловой энергии потребителям, предварительно загруженный в хранилище данных ФГИС ЕИАС."]
[null,null,null,{"$f":"B13 & \".2\"","v":".2"},"Дата прекращения","x","","","Дата прекращения указывается в виде «ДД.ММ.ГГГГ»."]
[]
[]
[]
[]
[]
[]
[]
[null,null,null,{"$f":"Титульный!E5","v":"Информация о выводе объектов теплоснабжения из эксплуатации и основаниях ограничения, прекращения подачи тепловой энергии потребителям"}]
[null,null,null,{"$f":"IF(org=0,\"Не определено\",org)","v":"АО \"Ярославские ЭнергоСистемы\""}]
[null,null,null,null,null,null,22]
[null,null,null,"№ п/п","Наименование параметра","Единица измерения","Вид деятельности:\r\n  - Передача. Тепловая энергия; Подключение (технологическое присоединение) к системе теплоснабжения\r\n\r\nТерритория оказания услуг:\r\n  - без дифференциации\r\n\r\nЦентрализованная система теплоснабжения:\r\n  - наименование отсутствует",null,"Описание параметров формы"]
[null,null,null,null,null,null,"Информация","Ссылка на документ"]
[null,null,null,"1","2","3",{"$f":"G1&\".1\"","v":"4.1"}]
[null,"1.0",null,1,"Сведения о выводе источников тепловой энергии из эксплуатации","x","x","x"]
[null,null,null,null,"Добавить источник тепловой энергии"]
[null,"2.0",null,2,"Сведения о выводе тепловых сетей из эксплуатации","x","x","x"]
[null,"2.1","О",{"$f":"B31 & \".1\"","v":"2.1.1"},"Наименование тепловой сети","x","Участок т/с от места бескамерной врезки ч/з т/к Т-10и до д.19б по пр. Ленина","https://portal.eias.ru/Portal/DownloadPage.aspx?type=12&guid=ac05f442-69b5-452c-ac8f-3390b8c3abcc","В случае вывода из эксплуатации нескольких тепловых сетей информация по каждой из них указывается в отдельно."]
[null,null,null,{"$f":"B31 & \".2\"","v":"2.1.2"},"Дата вывода","x","31.01.2022","","Дата вывода указывается в виде «ДД.ММ.ГГГГ»."]
[null,"2.2","О",{"$f":"B33 & \".1\"","v":"2.2.1"},"Наименование тепловой сети","x","Участок т/с от т/к У-5/16 до т/к У-5/16г по ул. Е. Колесовой","https://portal.eias.ru/Portal/DownloadPage.aspx?type=12&guid=db9e1808-99d3-4a0a-9fdf-e7e6578968bf","В случае вывода из эксплуатации нескольких тепловых сетей информация по каждой из них указывается в отдельно."]
[null,null,null,{"$f":"B33 & \".2\"","v":"2.2.2"},"Дата вывода","x","28.02.2022","","Дата вывода указывается в виде «ДД.ММ.ГГГГ»."]
[null,"2.3","О",{"$f":"B35 & \".1\"","v":"2.3.1"},"Наименование тепловой сети","x","Участок т/с от теплового узла ТК-7/1 до наружной стены д. №30 пос. Прибрежный (здание магазина)","https://portal.eias.ru/Portal/DownloadPage.aspx?type=12&guid=db9e1808-99d3-4a0a-9fdf-e7e6578968bf","В случае вывода из эксплуатации нескольких тепловых сетей информация по каждой из них указывается в отдельно."]
[null,null,null,{"$f":"B35 & \".2\"","v":"2.3.2"},"Дата вывода","x","28.02.2022","","Дата вывода указывается в виде «ДД.ММ.ГГГГ»."]
[null,"2.4","О",{"$f":"B37 & \".1\"","v":"2.4.1"},"Наименование тепловой сети","x","Участок т/с от теплового узла ТК-2/3 до теплоузла ТК-2/6  пос. Прибрежный ","https://portal.eias.ru/Portal/DownloadPage.aspx?type=12&guid=db9e1808-99d3-4a0a-9fdf-e7e6578968bf","В случае вывода из эксплуатации нескольких тепловых сетей информация по каждой из них указывается в отдельно."]
[null,null,null,{"$f":"B37 & \".2\"","v":"2.4.2"},"Дата вывода","x","28.02.2022","","Дата вывода указывается в виде «ДД.ММ.ГГГГ»."]
[null,"2.5","О",{"$f":"B39 & \".1\"","v":"2.5.1"},"Наименование тепловой сети","x","Участок т/с от теплоузла ТК-2/6 до врезки тк-2/6в  пос. Прибрежный ","https://portal.eias.ru/Portal/DownloadPage.aspx?type=12&guid=db9e1808-99d3-4a0a-9fdf-e7e6578968bf","В случае вывода из эксплуатации нескольких тепловых сетей информация по каждой из них указывается в отдельно."]
[null,null,null,{"$f":"B39 & \".2\"","v":"2.5.2"},"Дата вывода","x","28.02.2022","","Дата вывода указывается в виде «ДД.ММ.ГГГГ»."]
[null,"2.6","О",{"$f":"B41 & \".1\"","v":"2.6.1"},"Наименование тепловой сети","x","Участок т/с от врезки тк-2/6в до врезки тк-2/6г  пос. Прибрежный ","https://portal.eias.ru/Portal/DownloadPage.aspx?type=12&guid=db9e1808-99d3-4a0a-9fdf-e7e6578968bf","В случае вывода из эксплуатации нескольких тепловых сетей информация по каждой из них указывается в отдельно."]
[null,null,null,{"$f":"B41 & \".2\"","v":"2.6.2"},"Дата вывода","x","28.02.2022","","Дата вывода указывается в виде «ДД.ММ.ГГГГ»."]
[null,"2.7","О",{"$f":"B43 & \".1\"","v":"2.7.1"},"Наименование тепловой сети","x","Участок т/с от врезки тк-2/6г до здания пожарной части в пос. Прибрежный ","https://portal.eias.ru/Portal/DownloadPage.aspx?type=12&guid=db9e1808-99d3-4a0a-9fdf-e7e6578968bf","В случае вывода из эксплуатации нескольких тепловых сетей информация по каждой из них указывается в отдельно."]
[null,null,null,{"$f":"B43 & \".2\"","v":"2.7.2"},"Дата вывода","x","28.02.2022","","Дата вывода указывается в виде «ДД.ММ.ГГГГ»."]
[null,"2.8","О",{"$f":"B45 & \".1\"","v":"2.8.1"},"Наименование тепловой сети","x","Участок т/с от теплоузла ТК-2/6 до опуска тк-2/6а  пос. Прибрежный ","https://portal.eias.ru/Portal/DownloadPage.aspx?type=12&guid=db9e1808-99d3-4a0a-9fdf-e7e6578968bf","В случае вывода из эксплуатации нескольких тепловых сетей информация по каждой из них указывается в отдельно."]
[null,null,null,{"$f":"B45 & \".2\"","v":"2.8.2"},"Дата вывода","x","28.02.2022","","Дата вывода указывается в виде «ДД.ММ.ГГГГ»."]
[null,"2.9","О",{"$f":"B47 & \".1\"","v":"2.9.1"},"Наименование тепловой сети","x","Участок т/с от опуска тк-2/6а до подъема тк-2/6б  пос. Прибрежный ","https://portal.eias.ru/Portal/DownloadPage.aspx?type=12&guid=db9e1808-99d3-4a0a-9fdf-e7e6578968bf","В случае вывода из эксплуатации нескольких тепловых сетей информация по каждой из них указывается в отдельно."]
[null,null,null,{"$f":"B47 & \".2\"","v":"2.9.2"},"Дата вывода","x","28.02.2022","","Дата вывода указывается в виде «ДД.ММ.ГГГГ»."]
[null,"2.10","О",{"$f":"B49 & \".1\"","v":"2.10.1"},"Наименование тепловой сети","x","Участок т/с от подъема тк-2/6б до наружной стены д. 23 пос. Прибрежный ","https://portal.eias.ru/Portal/DownloadPage.aspx?type=12&guid=db9e1808-99d3-4a0a-9fdf-e7e6578968bf","В случае вывода из эксплуатации нескольких тепловых сетей информация по каждой из них указывается в отдельно."]
[null,null,null,{"$f":"B49 & \".2\"","v":"2.10.2"},"Дата вывода","x","28.02.2022","","Дата вывода указывается в виде «ДД.ММ.ГГГГ»."]
[null,null,null,null,"Добавить тепловую сеть"]
[null,"3.0",null,3,"Сведения об основаниях ограничения подачи тепловой энергии тепловой энергии","x","Не осуществлялось","x","В случае, если ограничения подачи тепловой энергии тепловой энергии не происходили, в колонке «Информация» указывается «Не осуществлялось».\nУказывается информация о случаях ограничения подачи тепловой энергии потребителям в случаях, предусмотренных законодательством в сфере теплоснабжения.\nВ неоднократных ограничений подачи потребления тепловой энергии потребителями информация по каждому случаю указывается отдельно."]
[null,null,null,null,"Добавить ограничение подачи ТЭ"]
[null,"4.0",null,4,"Сведения об основаниях прекращения подачи тепловой энергии потребителям","x","Не осуществлялось","x","В случае, если прекращения подачи тепловой энергии потребителям не происходили, в колонке «Информация» указывается «Не осуществлялось».\nУказывается информация о случаях прекращения подачи тепловой энергии потребителям, предусмотренных законодательством в сфере теплоснабжения.\nВ случае нескольких прекращений подачи тепловой энергии потребителям информация по каждому случаю указывается отдельно."]
[null,null,null,null,"Добавить прекращение подачи ТЭ"]

{"sheet":"Сведения об изменении","index":8,"n_rows":14,"n_cols":5,"rows_kept":14,"cut":false,"hidden":true,"merged":[[6,3,6,4],[7,3,7,4]]}
[]
[]
[]
[]
[]
[]
[null,null,null,"Сведения об изменениях в первоначально опубликованной информации"]
[null,null,null,{"$f":"IF(org=0,\"Не определено\",org)","v":"АО \"Ярославские ЭнергоСистемы\""}]
[]
[null,null,null,"№ п/п","Сведения"]
[null,null,null,"1","2"]
[null,null,null,0]
[null,null,null,1]
[null,null,null,null,"Добавить строку"]

{"sheet":"Форма 1.0.2","index":9,"n_rows":15,"n_cols":13,"rows_kept":15,"cut":false,"hidden":true,"merged":[[11,10,12,10],[14,4,14,9],[4,3,4,9],[7,3,7,9],[7,10,9,10],[8,3,9,3],[8,4,8,5],[8,6,8,9]]}
[]
[]
[]
[]
[null,null,null,"Форма 1.0.2 Информация о публикации в печатных изданиях 2"]
[]
[]
[null,null,null,"Параметры формы",null,null,null,null,null,null,"Описание параметров формы"]
[null,null,null,"№ п/п","Форма публикации",null,"Официальное печатное издание"]
[null,null,null,null,"Номер","Наименование","Наименование","Номер","Дата выпуска","Ссылка на документ"]
[null,null,null,"1","2","3","4","5","6","7","8"]
["3","",null,"1",null,null,null,null,null,null,"В колонке «Дата выпуска» дата выпуска печатного издания указывается в виде «ДД.ММ.ГГГГ».\nВ колонке «Ссылка на документ» указывается ссылка на отсканированную копию печатного издания, предварительно загруженную в хранилище федеральной государственной информационной системы «Единая информационно-аналитическая система «Федеральный орган регулирования - региональные органы регулирования - субъекты регулирования» (далее – ФГИС ЕИАС), с опубликованной информацией.\nВ случае публикации информации в нескольких печатных изданиях информация по каждому из них указывается в отдельной строке.",null,{"$f":"IF(ISERROR(INDEX(kind_of_nameforms,MATCH(E12,kind_of_forms,0),1)),\"\",INDEX(kind_of_nameforms,MATCH(E12,kind_of_forms,0),1))","v":""}]
[null,null,null,null,"Добавить строку"]
[]
[null,null,null,null,"2 В данной форме публикуется информация по каждой из форм раскрытия, данные в которой относятся к муниципальному образованию, в котором отсутствует доступ в информационно-телекоммуникационную сеть «Интернет» (далее – сеть «Интернет»)."]

{"sheet":"Комментарии","index":10,"n_rows":13,"n_cols":5,"rows_kept":13,"cut":false,"hidden":false,"merged":[[6,3,6,4],[7,3,7,4]]}
[]
[]
[]
[]
[]
[]
[null,null,null,"Комментарии"]
[null,null,null,{"$f":"IF(org=0,\"Не определено\",org)","v":"АО \"Ярославские ЭнергоСистемы\""}]
[]
[null,null,null,"№ п/п","Комментарий"]
[null,null,null,"1","2"]
[null,null,null,0]
[null,null,null,null,"Добавить"]

{"sheet":"Проверка","index":11,"n_rows":4,"n_cols":5,"rows_kept":4,"cut":false,"hidden":false,"merged":[[1,1,1,4]]}
[]
[null,"Результат проверки"]
[]
[null,"Ссылка1","Ссылка2","Причина","Статус"]

{"sheet":"modReestr","index":12,"n_rows":0,"n_cols":0,"rows_kept":0,"cut":false,"hidden":true,"merged":[]}

{"sheet":"AllSheetsInThisWorkbook","index":13,"n_rows":39,"n_cols":2,"rows_kept":39,"cut":false,"hidden":true,"merged":[]}
["Расчетные листы","Скрытые листы"]
["Инструкция","modProv"]
["Лог обновления","modReestr"]
["Титульный","AllSheetsInThisWorkbook"]
["Территории","TEHSHEET"]
["Дифференциация","modCheckCyan"]
["Форма 1.0.1","modInfo"]
["Форма 4.11","et_union_hor"]
["Сведения об изменении","et_union_vert"]
["Форма 1.0.2","modList00"]
["Комментарии","modList01"]
["Проверка","modList02"]
[null,"modList03"]
[null,"modList04"]
[null,"modList07"]
[null,"modList09"]
[null,"modHTTP"]
[null,"modfrmRegion"]
[null,"MR_LIST"]
[null,"REESTR_VT"]
[null,"REESTR_VED"]
[null,"modfrmReestrObj"]
[null,"DataOrg"]
[null,"modfrmReestr"]
[null,"modUpdTemplMain"]
[null,"REESTR_ORG"]
[null,"modClassifierValidate"]
[null,"modHyp"]
[null,"modfrmDateChoose"]
[null,"modComm"]
[null,"modThisWorkbook"]
[null,"REESTR_MO"]
[null,"REESTR_MO_FILTER"]
[null,"modfrmReestrMR"]
[null,"modServiceModule"]
[null,"modfrmCheckUpdates"]
[null,"REESTR_DS"]
[null,"REESTR_CHS"]
[null,"REESTR_LINK"]

{"sheet":"TEHSHEET","index":14,"n_rows":87,"n_cols":20,"rows_kept":87,"cut":false,"hidden":true,"merged":[[0,18,0,19]]}
["REGION",null,"year_list","logical","Месяц\n(MONTH)","Квартал\n(QUARTER)","Месяц\n(kind_of_publication)","Единица измерения объема оказываемых услуг ГВС\n/kind_of_unit_GVS/","Вид тарифа\n/list_of_tariff/","mr_id","версия шаблона\n (DocProp_Version)","0.1","Тип отчета\ndata_type","type_org_list",null,null,null,null,"Перечень форм\n(kind_of_forms)"]
["Алтайский край",null,2015,"да","январь","I квартал","На официальном сайте организации","тыс.куб.м/сутки",null,52,"код шаблона\n(DocProp_TemplateCode)",null,"первичное раскрытие информации","Регулируемая организация",null,null,null,null,"Форма 1.0.1","Основные параметры раскрываемой информации"]
["Амурская область",null,2016,"нет","февраль","II квартал","На сайте регулирующего органа","Гкал/час","Без дифференциации","sys_id","сфера\n(TSphere)",null,"изменения в раскрытой ранее информации","Единая теплоснабжающая организация",null,null,null,null,"Форма 4.11",{"$f":"Титульный!E5","v":"Информация о выводе объектов теплоснабжения из эксплуатации и основаниях ограничения, прекращения подачи тепловой энергии потребителям"}]
["Архангельская область",null,2017,null,"март","III квартал",null,"куб.м/час",null,104,"сфера(латиница)\n(TSphere_trans)",null,null,"Теплоснабжающая организация в ценовой зоне теплоснабжения"]
["Астраханская область",null,2018,null,"апрель","IV квартал",null,null,null,null,"сфера расширено\n(TSphere_full)",null,null,"Теплосетевая организация в ценовой зоне теплоснабжения"]
["Белгородская область",null,2019,null,"май"]
["Брянская область",null,2020,null,"июнь"]
["Владимирская область",null,2021,null,"июль",null,null,null,null,null,"true"]
["Волгоградская область",null,2022,null,"август"]
["Вологодская область",null,null,null,"сентябрь"]
["Воронежская область",null,null,null,"октябрь"]
["г.Байконур",null,null,null,"ноябрь"]
["г. Москва",null,null,null,"декабрь"]
["г.Санкт-Петербург"]
["г.Севастополь"]
["Еврейская автономная область",null,null,null,null,null,"Текущая дата"]
["Забайкальский край",null,"Организация",{"$f":"IF(f_year = \"\",\"\", IF(LEN(f_quart)=0,\"\",IF(f_quart=\"I квартал\", \"01.01.\"&f_year,IF(f_quart=\"II квартал\",\"01.04.\"&f_year,(IF(f_quart=\"III квартал\", \"01.07.\"&f_year,\"01.10.\"&f_year)))) ))","v":"01.01.2022"},{"$f":"IF(f_year = \"\",\"\", IF(LEN(f_quart)=0,\"\",IF(f_quart=\"I квартал\", \"31.03.\"& f_year,IF(f_quart=\"II квартал\",\"30.06.\"& f_year,(IF(f_quart=\"III квартал\", \"30.09.\"& f_year,\"31.12.\"& f_year)))) ))","v":"31.03.2022"},null,"01.04.2022 14:32:46"]
["Ивановская область"]
["Иркутская область",null,null,null,null,null,"Признак изменения данных на листе Доступ к товарам и услугам"]
["Кабардино-Балкарская республика",null,"Виды деятельности",null,null,null,true]
["Калининградская область"]
["Калужская область"]
["Камчатский край"]
["Карачаево-Черкесская республика"]
["Кемеровская область"]
["Кировская область"]
["Костромская область"]
["Краснодарский край"]
["Красноярский край"]
["Курганская область"]
["Курская область"]
["Ленинградская область"]
["Липецкая область"]
["Магаданская область"]
["Московская область"]
["Мурманская область"]
["Ненецкий автономный округ"]
["Нижегородская область"]
["Новгородская область"]
["Новосибирская область"]
["Омская область"]
["Оренбургская область"]
["Орловская область"]
["Пензенская область"]
["Пермский край"]
["Приморский край"]
["Псковская область"]
["Республика Адыгея"]
["Республика Алтай"]
["Республика Башкортостан"]
["Республика Бурятия"]
["Республика Дагестан"]
["Республика Ингушетия"]
["Республика Калмыкия"]
["Республика Карелия"]
["Республика Коми"]
["Республика Крым"]
["Республика Марий Эл"]
["Республика Мордовия"]
["Республика Саха (Якутия)"]
["Республика Северная Осетия-Алания"]
["Республика Татарстан"]
["Республика Тыва"]
["Республика Хакасия"]
["Ростовская область"]
["Рязанская область"]
["Самарская область"]
["Саратовская область"]
["Сахалинская область"]
["Свердловская область"]
["Смоленская область"]
["Ставропольский край"]
["Тамбовская область"]
["Тверская область"]
["Томская область"]
["Тульская область"]
["Тюменская область"]
["Удмуртская республика"]
["Ульяновская область"]
["Хабаровский край"]
["Ханты-Мансийский автономный округ"]
["Челябинская область"]
["Чеченская республика"]
["Чувашская республика"]
["Чукотский автономный округ"]
["Ямало-Ненецкий автономный округ"]
["Ярославская область"]

{"sheet":"modCheckCyan","index":15,"n_rows":4,"n_cols":1,"rows_kept":4,"cut":false,"hidden":true,"merged":[]}
[]
[{"$f":"IF('Сведения об изменении'!$E$13=\"\",1,0)","v":1}]
[{"$f":"IF(Дифференциация!$E$22=\"\",1,0)","v":0}]
[{"$f":"IF(Территории!$E$12=\"\",1,0)","v":0}]

{"sheet":"modInfo","index":16,"n_rows":11,"n_cols":2,"rows_kept":11,"cut":false,"hidden":true,"merged":[[4,3,4,10],[0,3,0,10],[1,3,1,10],[2,3,2,10],[3,3,3,10]]}
[null,"Территории"]
[1,"Наименование территории оказания услуг для целей идентификации"]
[2,"Муниципальные районы и муниципальные образования, на территории которых осуществляется оказание услуг"]
[null,"Дифференциация"]
[1,"В случае, если регулируемая организация осуществляет несколько видов деятельности, информация о которых подлежит раскрытию, информация по каждому виду деятельности раскрывается отдельно."]
[2,"Поле заполняется выбором значений из списка. Если значений для выбора нет - убедитесь, что лист \"Территории\" заполнен."]
[3,"Условное наименование централизованной системы коммунальной инфраструктуры для целей идентификации."]
[4,"В случае, если регулируемыми организациями оказываются услуги по нескольким технологически не связанным между собой  централизованным системам коммунальной инфраструктуры и если в отношении указанных централизованных систем устанавливаются различные тарифы, то информация раскрывается отдельно по каждой централизованной системе коммунальной инфраструктуры."]
[null,"Сведения об изменении"]
[1,"Лист заполняется в случае, если на Титульном листе в поле \"Тип отчета\" выбрано значение «Изменения в раскрытой ранее информации»."]
[null,"Нет доступных обновлений, версия отчёта актуальна"]

{"sheet":"et_union_hor","index":17,"n_rows":60,"n_cols":26,"rows_kept":60,"cut":false,"hidden":true,"merged":[[19,7,20,7],[28,3,30,3],[28,4,30,4],[28,5,30,5],[28,6,29,6],[28,7,29,7],[34,7,35,7],[34,8,35,8],[34,9,35,9],[28,8,29,8],[28,9,29,9],[50,3,50,5],[50,6,51,6],[14,2,15,2],[14,3,15,3],[14,4,15,4],[19,2,20,2],[19,5,20,5],[34,6,35,6],[19,6,20,6],[49,3,49,6]]}
[]
[]
["et_Comm"]
[]
[]
[]
["et_List04"]
[]
[]
[]
[]
[]
["et_List09_0"]
[]
[null,"auto",null,1,null,null,0,null,null,"0",null,null,{"$f":"mergeValue(H15)","v":0},null,null,{"$f":"IF(ISERROR(MATCH(MID(Q15,1,250),MID(note_ter,1,250),0)),\"n\",\"y\")","v":"y"},null,{"$f":"K15&\"(\"&L15&\")\"","v":"()"}]
[null,null,null,null,null,null,null,"Добавить МР"]
[]
["et_List09_1"]
[]
[null,"auto",null,null,null,null,0,null,null,"0",null,null,{"$f":"mergeValue(H20)","v":0},null,null,null,null,{"$f":"K20&\"(\"&L20&\")\"","v":"()"}]
[null,null,null,null,null,null,null,null,null,null,"Добавить МО"]
[]
["et_List09_2"]
[]
[null,"auto",null,null,null,null,null,null,null,0,null,null,{"$f":"mergeValue(H25)","v":0},null,null,null,null,{"$f":"K25&\" (\"&L25&\")\"","v":" ()"}]
[]
["et_List07_1"]
[]
[null,null,null,"1",null,"нет",null,1,null,"нет",null,"1",null,null,null,null,null,null,null,null,null,null,null,null,"a",1705000]
[null,null,null,null,null,null,null,null,null,null,null,null,"Добавить централизованную систему коммунальной инфраструктуры"]
[null,null,null,null,null,null,null,null,"Добавить описание территории оказания услуг"]
[]
["et_List07_4"]
[]
[null,null,null,null,null,null,null,1,null,"нет",null,"1",null,null,null,null,null,null,null,null,null,null,null,null,"a",1705000]
[null,null,null,null,null,null,null,null,null,null,null,null,"Добавить централизованную систему коммунальной инфраструктуры"]
[]
["et_List07_5"]
[]
[null,null,null,null,null,null,null,null,null,null,null,"1",null,null,null,null,null,null,null,null,null,null,null,null,"a",1705000]
[]
[]
["et_List03"]
[]
["3","",null,null,null,null,null,null,null,null,null,null,{"$f":"IF(ISERROR(INDEX(kind_of_nameforms,MATCH(E45,kind_of_forms,0),1)),\"\",INDEX(kind_of_nameforms,MATCH(E45,kind_of_forms,0),1))","v":""}]
[]
["et_List02_st","et_List02_ter","et_List02_mr","et_List02_mo"]
[]
[]
[null,null,null,"Форма 1.0.1"]
[null,null,null,"Параметры формы",null,null,"Описание параметров формы"]
[null,null,null,"№ п/п","Наименование параметра","Информация"]
[null,null,null,"1",2,3,4]
[null,null,null,1,"Дата заполнения/внесения изменений",{"$f":"IF(form_up_date=\"\",\"\",form_up_date)","v":"01.04.2022"},"Указывается календарная дата первичного заполнения или внесения изменений в форму в виде «ДД.ММ.ГГГГ»."]
[null,null,null,"2.1","Наименование централизованной системы коммунальной инфраструктуры",null,"Указывается наименование централизованной системы холодного водоснабжения/горячего водоснабжения/водоотведения/теплоснабжения, к которой относится размещаемая информация.\nВ случае наличия нескольких централизованных систем коммунальной инфраструктуры, информация по каждой из них указывается в отдельной строке. "]
[null,null,null,"3.1","Наименование регулируемого вида деятельности",null,"Указывается наименование вида регулируемой деятельности."]
[null,null,null,"4.1","Территория оказания услуги по регулируемому виду деятельности","x"]
[null,null,null,{"$f":"D57&\".1\"","v":"4.1.1"},"Субъект РФ",{"$f":"IF(region_name=\"\",\"\",region_name)","v":"Ярославская область"},"Указывается наименование субъекта Российской Федерации"]
[null,null,null,"4.1.1.1","муниципальный район",null,"Указывается наименование муниципального района, на территории которого организация оказывает услуги по регулируемому виду деятельности."]
[null,null,null,"4.1.1.1.1","муниципальное образование",null,"Указывается наименование и код муниципального района, муниципального образования в соответствии с Общероссийским классификатором территорий муниципальных образований (далее - ОКТМО), входящего в муниципальный район, на территории которого организация оказывает услуги по регулируемому виду деятельности.\nВ случае оказания услуг по регулируемому виду деятельности на территории нескольких муниципальных районов (муниципальных образований) данные по каждому их них указываются в отдельной строке."]

{"sheet":"et_union_vert","index":18,"n_rows":0,"n_cols":0,"rows_kept":0,"cut":false,"hidden":true,"merged":[]}

{"sheet":"modList00","index":19,"n_rows":0,"n_cols":0,"rows_kept":0,"cut":false,"hidden":true,"merged":[]}

{"sheet":"modList01","index":20,"n_rows":0,"n_cols":0,"rows_kept":0,"cut":false,"hidden":true,"merged":[]}

{"sheet":"modList02","index":21,"n_rows":0,"n_cols":0,"rows_kept":0,"cut":false,"hidden":true,"merged":[]}

{"sheet":"modList03","index":22,"n_rows":0,"n_cols":0,"rows_kept":0,"cut":false,"hidden":true,"merged":[]}

{"sheet":"modList04","index":23,"n_rows":0,"n_cols":0,"rows_kept":0,"cut":false,"hidden":true,"merged":[]}

{"sheet":"modList07","index":24,"n_rows":0,"n_cols":0,"rows_kept":0,"cut":false,"hidden":true,"merged":[[5,0,6,1],[17,0,18,0]]}

{"sheet":"modList09","index":25,"n_rows":0,"n_cols":0,"rows_kept":0,"cut":false,"hidden":true,"merged":[]}

{"sheet":"modHTTP","index":26,"n_rows":0,"n_cols":0,"rows_kept":0,"cut":false,"hidden":true,"merged":[]}

{"sheet":"modfrmRegion","index":27,"n_rows":0,"n_cols":0,"rows_kept":0,"cut":false,"hidden":true,"merged":[]}

{"sheet":"MR_LIST","index":28,"n_rows":0,"n_cols":0,"rows_kept":0,"cut":false,"hidden":true,"merged":[]}

{"sheet":"REESTR_VT","index":29,"n_rows":0,"n_cols":0,"rows_kept":0,"cut":false,"hidden":true,"merged":[]}

{"sheet":"REESTR_VED","index":30,"n_rows":11,"n_cols":2,"rows_kept":11,"cut":false,"hidden":true,"merged":[]}
["ID_TARIFF_NAME","VED_NAME"]
[4190064,"Производство тепловой энергии. Некомбинированная выработка"]
[4190065,"Производство тепловой энергии. Комбинированная выработка с уст. мощностью производства электрической энергии менее 25 МВт"]
[4190066,"Производство тепловой энергии. Комбинированная выработка с уст. мощностью производства электрической энергии 25 МВт и более"]
[4190067,"Производство. Теплоноситель"]
[4190068,"Передача. Тепловая энергия"]
[4190069,"Передача. Теплоноситель"]
[4190070,"Сбыт. Тепловая энергия"]
[4190071,"Сбыт. Теплоноситель"]
[4190072,"Подключение (технологическое присоединение) к системе теплоснабжения"]
[4190073,"Поддержание резервной тепловой мощности при отсутствии потребления тепловой энергии"]

{"sheet":"modfrmReestrObj","index":31,"n_rows":0,"n_cols":0,"rows_kept":0,"cut":false,"hidden":true,"merged":[]}

{"sheet":"DataOrg","index":32,"n_rows":0,"n_cols":0,"rows_kept":0,"cut":false,"hidden":true,"merged":[]}

{"sheet":"modfrmReestr","index":33,"n_rows":0,"n_cols":0,"rows_kept":0,"cut":false,"hidden":true,"merged":[]}

{"sheet":"modUpdTemplMain","index":34,"n_rows":0,"n_cols":0,"rows_kept":0,"cut":false,"hidden":true,"merged":[]}

{"sheet":"REESTR_ORG","index":35,"n_rows":137,"n_cols":10,"rows_kept":137,"cut":false,"hidden":true,"merged":[]}
["№","REGION_ID","REGION_NAME","RST_ORG_ID","ORG_NAME","INN_NAME","KPP_NAME","ORG_START_DATE","ORG_END_DATE"]
[1,"2603","Ярославская область","26483206","\"Ярославский электровозоремонтный завод\" им. Б.П. Бещева - филиал ОАО \"Желдорреммаш\"","7715729877","760443001",null,null,"WARM"]
[2,"2603","Ярославская область","26483393","АО \"Воентелеком\"","7718766718","761043001","18-06-2012 00:00:00",null,"WARM"]
[3,"2603","Ярославская область","26560525","АО \"ГУ ЖКХ\"","5116000922","511601001","13-05-2009 00:00:00",null,"WARM"]
[4,"2603","Ярославская область","26483350","АО \"Гаврилов-Ямский машиностроительный завод \"Агат\"","7616002417","761601001",null,null,"WARM"]
[5,"2603","Ярославская область","26483474","АО \"Даниловское ЖКХ\"","7617008098","761701001",null,null,"WARM"]
[6,"2603","Ярославская область","28822308","АО \"Малая комплексная энергетика\"","7612043797","760601001",null,null,"WARM"]
[7,"2603","Ярославская область","26483153","АО \"Новый мир\"","7608001240","760801001",null,null,"WARM"]
[8,"2603","Ярославская область","26483200","АО \"Норский керамический завод\"","7602013169","760201001",null,null,"WARM"]
[9,"2603","Ярославская область","26514573","АО \"Первомайское коммунальное хозяйство\"","7623004895","762301001",null,null,"WARM"]
[10,"2603","Ярославская область","26901857","АО \"РЭУ\"","7714783092","332743001",null,null,"WARM"]
[11,"2603","Ярославская область","26483340","АО \"Ресурс\"","7616009483","761601001",null,null,"WARM"]
[12,"2603","Ярославская область","26483220","АО \"Русские краски\"","7605015012","760501001","05-08-2002 00:00:00",null,"WARM"]
[13,"2603","Ярославская область","26483401","АО \"Рыбинский завод приборостроения\"","7610062970","761001001",null,null,"WARM"]
[14,"2603","Ярославская область","26483176","АО \"Старк-Ресурс\"","7601001072","760401001",null,null,"WARM"]
[15,"2603","Ярославская область","28134686","АО \"Тутаевская ПГУ\"","7611020204","761101001",null,null,"WARM"]
[16,"2603","Ярославская область","26483196","АО \"Хром\"","7601001724","760401001",null,null,"WARM"]
[17,"2603","Ярославская область","28507030","АО \"Яркоммунсервис\"","7602090950","760201001","06-04-2012 00:00:00",null,"WARM"]
[18,"2603","Ярославская область","26483230","АО \"Ярославльводоканал\"","7606069518","760601001",null,null,"WARM"]
[19,"2603","Ярославская область","26569087","АО \"Ярославская генерирующая компания\"","7604178769","760601001",null,null,"WARM"]
[20,"2603","Ярославская область","30919361","АО \"Ярославские ЭнергоСистемы\"","7603066822","760301001","27-01-2017 00:00:00",null,"WARM"]
[21,"2603","Ярославская область","26483194","АО \"Ярославский вагоноремонтный завод \"Ремпутьмаш\"","7603030907","760301001",null,null,"WARM"]
[22,"2603","Ярославская область","26811543","АО \"Ярославский технический углерод имени В.Ю. Орлова\"","7605000714","760450001",null,null,"WARM"]
[23,"2603","Ярославская область","26483352","Великосельское МП ЖКХ","7616006563","761601001",null,null,"WARM"]
[24,"2603","Ярославская область","26483369","ГП ЯО \"Северный водоканал\"","7610012391","761001001",null,null,"WARM"]
[25,"2603","Ярославская область","30808282","ГП ЯО \"Южный водоканал\"","7609036849","760301001",null,null,"WARM"]
[26,"2603","Ярославская область","26483431","ЗАО \"Атрус\"","7609002208","760901001","16-09-1996 00:00:00",null,"WARM"]
[27,"2603","Ярославская область","26483190","ЗАО \"Волгаэнергоресурс\"","7602053796","760101001",null,null,"WARM"]
[28,"2603","Ярославская область","26525046","ЗАО \"Железобетон\"","7601000262","760201001",null,null,"WARM"]
[29,"2603","Ярославская область","26483427","ЗАО \"Консервный завод \"Поречский\"","7609015486","760901001",null,null,"WARM"]
[30,"2603","Ярославская область","26483320","ЗАО \"Левашово\"","7621000461","762101001",null,null,"WARM"]
[31,"2603","Ярославская область","26514513","ЗАО \"Пансионат отдыха \"Ярославль\"","7627015577","762701001",null,null,"WARM"]
[32,"2603","Ярославская область","26649288","ЗАО \"Санаторий имени Воровского\"","7626001860","761001001",null,null,"WARM"]
[33,"2603","Ярославская область","26649314","ЗАО \"Ярославль-Резинотехника\"","7603024491","760301001",null,null,"WARM"]
[34,"2603","Ярославская область","26483338","Любимское МУП ЖКХ","7618000140","761801001",null,null,"WARM"]
[35,"2603","Ярославская область","30792750","МКП «Теплосервис»","7617009623","761701001",null,null,"WARM"]
[36,"2603","Ярославская область","31327447","МП ЯМР \"Теплоресурс\"","7627051712","762701001","16-01-2019 00:00:00",null,"WARM"]
[37,"2603","Ярославская область","26483463","МУП \"Коммунальник\"","7613004085","761301001",null,null,"WARM"]
[38,"2603","Ярославская область","30344297","МУП \"Коммунальное хозяйство\"","7615011610","761501001",null,null,"WARM"]
[39,"2603","Ярославская область","28505444","МУП \"Любимский теплосервис\"","7618004018","761801001","15-10-2013 00:00:00",null,"WARM"]
[40,"2603","Ярославская область","26483443","МУП \"Октябрьское жилищно-коммунальное хозяйство\"","7620004833","762001001",null,null,"WARM"]
[41,"2603","Ярославская область","26483240","МУП \"Предприятие коммунально-бытового обслуживания\"","7612039712","761201001",null,null,"WARM"]
[42,"2603","Ярославская область","28442711","МУП \"РКЦ ЖКУ\"","7621006030","762101001",null,null,"WARM"]
[43,"2603","Ярославская область","31224727","МУП \"Расчетный центр\"","7609018487","760901001","05-12-2016 00:00:00",null,"WARM"]
[44,"2603","Ярославская область","26483622","МУП \"Спектр\"","7608011873","760801001",null,null,"WARM"]
[45,"2603","Ярославская область","27569386","МУП \"Тепловые сети\"","7612043980","761201001",null,null,"WARM"]
[46,"2603","Ярославская область","31221168","МУП \"Теплосервис\"","7608036268","760801001","17-09-2018 00:00:00",null,"WARM"]
[47,"2603","Ярославская область","26785009","МУП \"Энергетик\"","7608010100","760801002",null,null,"WARM"]
[48,"2603","Ярославская область","29646676","МУП \"Энергетический ресурс\" Некрасовского муниципального района","7621010075","762101001",null,null,"WARM"]
[49,"2603","Ярославская область","30791907","МУП «Энергоресурс» УМР","7612046371","761201001",null,null,"WARM"]
[50,"2603","Ярославская область","26483373","МУП ГО г.Рыбинск \"Теплоэнерго\"","7610044403","761001001","11-06-1998 00:00:00",null,"WARM"]
[51,"2603","Ярославская область","30881192","МУП ЖКХ \"Акватерм-сервис\"","7614004641","761401001",null,null,"WARM"]
[52,"2603","Ярославская область","28425128","МУП ЖКХ \"Бурмакино\"","7621009707","762101001",null,null,"WARM"]
[53,"2603","Ярославская область","26483322","МУП ЖКХ \"Заволжское\"","7621006992","762101001",null,null,"WARM"]
[54,"2603","Ярославская область","28821524","МУП ЖКХ Первомайского муниципального района Ярославской области \"Теплоснаб\"","7623005151","762301001",null,null,"WARM"]
[55,"2603","Ярославская область","26483304","МУП РМР ЯО \"Коммунальные системы\"","7610074824","761001001",null,null,"WARM"]
[56,"2603","Ярославская область","30345479","МУП РМР ЯО \"Система ЖКХ\"","7610088016","761001001",null,null,"WARM"]
[57,"2603","Ярославская область","31355330","МУП ТМР \"ТутаевТеплоЭнерго\"","7611026862","761101001","25-10-2019 00:00:00",null,"WARM"]
[58,"2603","Ярославская область","28443212","МУП ТМР \"Тутаевские коммунальные системы\"","7611022836","761101001",null,null,"WARM"]
[59,"2603","Ярославская область","26483455","ОАО \"Даниловский маслосырзвод\"","7617000268","761701001",null,null,"WARM"]
[60,"2603","Ярославская область","26514525","ОАО \"ЖКХ \"Заволжье\"","7627032974","762701001",null,null,"WARM"]
[61,"2603","Ярославская область","26524667","ОАО \"Инкомпроект-Инвест\"","7604149662","760401001",null,null,"WARM"]
[62,"2603","Ярославская область","26483184","ОАО \"Компания \"Спектр\"","7609012894","760601001",null,null,"WARM"]
[63,"2603","Ярославская область","26483417","ОАО \"Петровский завод ЖБИ\"","7609012573","760901001",null,null,"WARM"]
[64,"2603","Ярославская область","26483395","ОАО \"Раскат\"","7610002851","761001001",null,null,"WARM"]
[65,"2603","Ярославская область","26483375","ОАО \"Рыбинскхлеб\"","7610005796","761001001",null,null,"WARM"]
[66,"2603","Ярославская область","27548439","ОАО \"Санаторий \"Красный Холм\"","7627015619","762701001",null,null,"WARM"]
[67,"2603","Ярославская область","26483162","ОАО \"Яргортеплоэнерго\"","7606047507","760601001",null,null,"WARM"]
[68,"2603","Ярославская область","26483174","ОАО \"Ярославский комбинат технических тканей \"Красный Перекоп\"","7601001146","760501001",null,null,"WARM"]
[69,"2603","Ярославская область","26319496","ОАО \"Ярославский нефтеперерабатывающий завод им. Д.И. Менделеева\"","7611002100","761101001",null,null,"WARM"]
[70,"2603","Ярославская область","26483198","ООО \"АДС\"","7604008710","760401001",null,null,"WARM"]
[71,"2603","Ярославская область","31357107","ООО \"Агентство территориального развития\"","7733553954","773301001","17-10-2005 00:00:00",null,"WARM"]
[72,"2603","Ярославская область","31094278","ООО \"Атлас-М\"","7731444999","773101001","04-04-2013 00:00:00",null,"WARM"]
[73,"2603","Ярославская область","31224721","ООО \"Велмекс\"","7728231310","503201001","31-10-2002 00:00:00",null,"WARM"]
[74,"2603","Ярославская область","28932227","ООО \"Газпром теплоэнерго Ярославль\"","7603060690","760301001","12-01-2015 00:00:00",null,"WARM"]
[75,"2603","Ярославская область","31036525","ООО \"Компания \"Мастер-Сервис\"","7604137836","760401001","21-07-2008 00:00:00",null,"WARM"]
[76,"2603","Ярославская область","31085027","ООО \"Котельная промплощадки\"","7609038275","760901001","23-01-2018 00:00:00",null,"WARM"]
[77,"2603","Ярославская область","28981279","ООО \"ЛКМ\"","7610110198","761001001","21-05-2015 00:00:00",null,"WARM"]
[78,"2603","Ярославская область","27568785","ООО \"Муниципальные коммунальные системы\"","7627036930","762701001",null,null,"WARM"]
[79,"2603","Ярославская область","26649427","ООО \"Муниципальные энергетические системы\"","7727575942","760801001",null,null,"WARM"]
[80,"2603","Ярославская область","26525313","ООО \"Мясопродукт\"","7610041709","761001001",null,null,"WARM"]
[81,"2603","Ярославская область","31230718","ООО \"ОРЦ Ярославль\"","2311234703","231101001","12-04-2017 00:00:00",null,"WARM"]
[82,"2603","Ярославская область","28505423","ООО \"Переславская энергетическая компания\"","7608010870","645001001",null,null,"WARM"]
[83,"2603","Ярославская область","31313217","ООО \"Прогресс\"","7627052000","762701001","28-03-2019 00:00:00",null,"WARM"]
[84,"2603","Ярославская область","30794646","ООО \"Промцентр\"","7604234854","760401001",null,null,"WARM"]
[85,"2603","Ярославская область","26525309","ООО \"Раскат-РОС\"","7610059375","761001002",null,null,"WARM"]
[86,"2603","Ярославская область","31543125","ООО \"Росттехсервис\"","7609038170","760901001","04-12-2017 00:00:00",null,"WARM"]
[87,"2603","Ярославская область","31352310","ООО \"Рыбинская генерация\"","4401158338","761001001","14-08-2018 00:00:00",null,"WARM"]
[88,"2603","Ярославская область","27965323","ООО \"Рыбинсккабель\"","7610093062","761050001",null,null,"WARM"]
[89,"2603","Ярославская область","31304319","ООО \"СЗЦ \"Энергоконсультант\"","7627036016","762701001","24-12-2010 00:00:00",null,"WARM"]
[90,"2603","Ярославская область","30925371","ООО \"СК РЕЗЕРВ\"","7604290834","760401001","01-06-2017 00:00:00",null,"WARM"]
[91,"2603","Ярославская область","26483296","ООО \"Санаторий \"Черная речка\"","7610057882","761001001",null,null,"WARM"]
[92,"2603","Ярославская область","26483336","ООО \"Санаторий Золотой колос\"","7621006054","762101001",null,null,"WARM"]
[93,"2603","Ярославская область","27555004","ООО \"Спецторг Плюс\"","7604076460","760401001","31-05-2005 00:00:00",null,"WARM"]
[94,"2603","Ярославская область","30814222","ООО \"Строительная Компания Сокол\"","7604165544","760201001",null,null,"WARM"]
[95,"2603","Ярославская область","31459589","ООО \"ТЭК сервис\"","7627053540","762701001","01-08-2020 00:00:00",null,"WARM"]
[96,"2603","Ярославская область","31026191","ООО \"ТеплоСервис\"","7612048474","761201001","13-09-2017 00:00:00",null,"WARM"]
[97,"2603","Ярославская область","28982870","ООО \"ТеплоЭнергоСтройМонтаж\"","7606074821","762701001","01-05-2015 00:00:00",null,"WARM"]
[98,"2603","Ярославская область","27569416","ООО \"Тепловая энергетическая компания - 1\"","7604188573","760401001",null,null,"WARM"]
[99,"2603","Ярославская область","26516086","ООО \"Теплогазсервис\"","4415006543","441501001",null,null,"WARM"]
[100,"2603","Ярославская область","31542760","ООО \"Теплорезерв\"","7603075760","760401001","21-04-2021 00:00:00",null,"WARM"]
[101,"2603","Ярославская область","30796099","ООО \"Теплотехник\"","7604278428","760401001",null,null,"WARM"]
[102,"2603","Ярославская область","26483204","ООО \"ТехЭкспо\"","7604122607","760401001",null,null,"WARM"]
[103,"2603","Ярославская область","26525371","ООО \"УК Левобережье\"","7611018780","761101001",null,null,"WARM"]
[104,"2603","Ярославская область","28459632","ООО \"УМПРЭО\"","7612038469","761201001","26-11-2007 00:00:00",null,"WARM"]
[105,"2603","Ярославская область","31094256","ООО \"УСМЗ\"","7612048636","761201001","05-03-2018 00:00:00",null,"WARM"]
[106,"2603","Ярославская область","26483244","ООО \"Угличский завод минеральной воды\"","7612003339","761201001",null,null,"WARM"]
[107,"2603","Ярославская область","28135241","ООО \"Управляющая производственно-торговая компания \"Топливоподающие системы\"","7603013073","760301001","01-01-2013 00:00:00",null,"WARM"]
[108,"2603","Ярославская область","30856146","ООО \"Уют Сервис\"","7604234678","760401001",null,null,"WARM"]
[109,"2603","Ярославская область","28453584","ООО \"Хуадянь-Тенинская ТЭЦ\"","7604217961","760401001","30-01-2018 00:00:00",null,"WARM"]
[110,"2603","Ярославская область","31457276","ООО \"ЭКОПЕТРОВСК\"","6444009736","644401001","13-02-2018 00:00:00",null,"WARM"]
[111,"2603","Ярославская область","26483210","ООО \"Энергия-1\"","7605005021","760501001",null,null,"WARM"]
[112,"2603","Ярославская область","27971145","ООО \"Энергокомпания\"","7612044470","761201001",null,null,"WARM"]
[113,"2603","Ярославская область","26483164","ООО \"Ярославская фабрика валяной обуви\"","7603015433","760301001",null,null,"WARM"]
[114,"2603","Ярославская область","31096235","ООО \"Ярославские коммунальные сети\"","7602092114","760201001",null,null,"WARM"]
[115,"2603","Ярославская область","31314675","ООО \"Ярославские коммунальные сети\"","7602092114","762701001","17-05-2019 00:00:00",null,"WARM"]
[116,"2603","Ярославская область","31458273","Общество с ограниченной ответственностью \"Комплекс развития территорий\"","7733528958","773301001","16-09-2004 00:00:00",null,"WARM"]
[117,"2603","Ярославская область","26483403","ПАО \"Научно-производственное объединение Фильтры индустриальные газоочистные\"","7609001719","760901001",null,null,"WARM"]
[118,"2603","Ярославская область","26483377","ПАО \"ОДК-Сатурн\"","7610052644","761001001",null,null,"WARM"]
[119,"2603","Ярославская область","26514608","ПАО \"РОМЗ\"","7609000881","760901001",null,null,"WARM"]
[120,"2603","Ярославская область","26523308","ПАО \"ТГК-2\"","7606053324","760601001",null,null,"WARM"]
[121,"2603","Ярославская область","26483170","ПАО \"ТГК-2\"","7606053324","760631001",null,null,"WARM"]
[122,"2603","Ярославская область","31024154","ПАО \"Ярославский завод \"Красный Маяк\"","7601000022","760601001","01-11-2017 00:00:00",null,"WARM"]
[123,"2603","Ярославская область","26650304","ПАО \"Ярославский ордена Ленина и ордена Октябрьской революции шинный завод\"","7601001509","760150001",null,null,"WARM"]
[124,"2603","Ярославская область","26483178","ПАО \"Ярославский радиозавод\"","7601000086","760401001",null,null,"WARM"]
[125,"2603","Ярославская область","26836275","Северная Дирекция по тепловодоснабжению структурное подразделение Центральной дирекции по тепловодоснабжению - филиала ОАО \"РЖД\"","7708503727","760445028",null,null,"WARM"]
[126,"2603","Ярославская область","30903763","ФГБУ \"ЦЖКУ\" МИНОБОРОНЫ РОССИИ","7729314745","770101001",null,null,"WARM"]
[127,"2603","Ярославская область","31499853","ФГБУ ЦЖКУ МО РФ (филиал по ЗВО) ЖКС № 19","7729314745","760445004",null,null,"WARM"]
[128,"2603","Ярославская область","26483391","ФКУ Следственный изолятор 2 УФСИН по Ярославской области","7610028000","761001001",null,null,"WARM"]
[129,"2603","Ярославская область","28160602","ФКУ Следственный изолятор № 1 УФСИН России по Ярославской области","7607008444","760401001",null,null,"WARM"]
[130,"2603","Ярославская область","31253180","Филиал \"Крома\" ООО \"Завод Технофлекс\"","6229024796","761043001","22-06-2018 00:00:00",null,"WARM"]
[131,"2603","Ярославская область","30849324","Филиал АО \"Кордиант\" в городе Ярославле (ЯШЗ)","7601001509","760643002","07-10-2016 00:00:00",null,"WARM"]
[132,"2603","Ярославская область","26483447","Филиал ООО \"Транснефть-Балтика\"-Ярославское районное нефтепроводное управление","4704041900","762702001",null,null,"WARM"]
[133,"2603","Ярославская область","26649247","Филиал в Ярославской и Костромской областях ПАО междугородной и международной электрической связи \"Ростелеком\"","7707049388","760443003",null,null,"WARM"]
[134,"2603","Ярославская область","26524662","ЧУЗ \"КБ \"РЖД-Медицина\" г. Ярославль","7604068188","760401001",null,null,"WARM"]
[135,"2603","Ярославская область","28798643","Ярославская дистанция гражданских сооружений СП Северной дирекции по эксплуатации зданий и сооружений СП СЖД филиала ОАО \"РЖД\"","7708503727","760445099",null,null,"WARM"]
[136,"2603","Ярославская область","26526614","Ярославская дистанция гражданских сооружений, водоснабжения и водоотведения ЯО СЖД-филиала ОАО \"РЖД\"","7708503727","997650007",null,null,"WARM"]

{"sheet":"modClassifierValidate","index":36,"n_rows":0,"n_cols":0,"rows_kept":0,"cut":false,"hidden":true,"merged":[]}

{"sheet":"modHyp","index":37,"n_rows":0,"n_cols":0,"rows_kept":0,"cut":false,"hidden":true,"merged":[]}

{"sheet":"modfrmDateChoose","index":38,"n_rows":0,"n_cols":0,"rows_kept":0,"cut":false,"hidden":true,"merged":[]}

{"sheet":"modComm","index":39,"n_rows":0,"n_cols":0,"rows_kept":0,"cut":false,"hidden":true,"merged":[]}

{"sheet":"modThisWorkbook","index":40,"n_rows":0,"n_cols":0,"rows_kept":0,"cut":false,"hidden":true,"merged":[]}

{"sheet":"REESTR_MO","index":41,"n_rows":97,"n_cols":4,"rows_kept":97,"cut":false,"hidden":true,"merged":[]}
["№","МР","МО","МО_ОКТМО"]
[1,"Большесельский муниципальный район","Благовещенское сельское поселение","78603411"]
[2,"Большесельский муниципальный район","Большесельский муниципальный район","78603000"]
[3,"Большесельский муниципальный район","Большесельское сельское поселение","78603422"]
[4,"Большесельский муниципальный район","Вареговское сельское поселение","78603427"]
[5,"Борисоглебский муниципальный район","Андреевское сельское поселение","78606422"]
[6,"Борисоглебский муниципальный район","Борисоглебский муниципальный район","78606000"]
[7,"Борисоглебский муниципальный район","Борисоглебское сельское поселение","78606407"]
[8,"Борисоглебский муниципальный район","Вощажниковское сельское поселение","78606410"]
[9,"Борисоглебский муниципальный район","Высоковское сельское поселение","78606415"]
[10,"Борисоглебский муниципальный район","Инальцинское сельское поселение","78606405"]
[11,"Брейтовский муниципальный район","Брейтовский муниципальный район","78609000"]
[12,"Брейтовский муниципальный район","Брейтовское сельское поселение","78609411"]
[13,"Брейтовский муниципальный район","Гореловское сельское поселение","78609422"]
[14,"Брейтовский муниципальный район","Прозоровское сельское поселение","78609433"]
[15,"Гаврилов-Ямский муниципальный район","Великосельское сельское поселение","78612405"]
[16,"Гаврилов-Ямский муниципальный район","Гаврилов-Ямский муниципальный район","78612000"]
[17,"Гаврилов-Ямский муниципальный район","Городское поселение г. Гаврилов-Ям","78612101"]
[18,"Гаврилов-Ямский муниципальный район","Заячье-Холмское сельское поселение","78612477"]
[19,"Гаврилов-Ямский муниципальный район","Митинское сельское поселение","78612450"]
[20,"Гаврилов-Ямский муниципальный район","Шопшинское сельское поселение","78612490"]
[21,"Даниловский муниципальный район","Городское поселение г. Данилов","78615101"]
[22,"Даниловский муниципальный район","Даниловский муниципальный район","78615000"]
[23,"Даниловский муниципальный район","Даниловское сельское поселение","78615435"]
[24,"Даниловский муниципальный район","Дмитриевское сельское поселение","78615420"]
[25,"Даниловский муниципальный район","Середское сельское поселение","78615470"]
[26,"Любимский муниципальный район","Воскресенское сельское поселение","78618405"]
[27,"Любимский муниципальный район","Городское поселение г. Любим","78618101"]
[28,"Любимский муниципальный район","Ермаковское сельское поселение","78618410"]
[29,"Любимский муниципальный район","Любимский муниципальный район","78618000"]
[30,"Любимский муниципальный район","Осецкое сельское поселение","78618433"]
[31,"Мышкинский муниципальный район","Городское поселение г. Мышкин","78621101"]
[32,"Мышкинский муниципальный район","Мышкинский муниципальный район","78621000"]
[33,"Мышкинский муниципальный район","Охотинское сельское поселение","78621430"]
[34,"Мышкинский муниципальный район","Приволжское сельское поселение","78621415"]
[35,"Некоузский муниципальный район","Веретейское сельское поселение","78623404"]
[36,"Некоузский муниципальный район","Волжское сельское поселение","78623406"]
[37,"Некоузский муниципальный район","Некоузский муниципальный район","78623000"]
[38,"Некоузский муниципальный район","Некоузское сельское поселение","78623415"]
[39,"Некоузский муниципальный район","Октябрьское сельское поселение","78623427"]
[40,"Некрасовский муниципальный район","Бурмакино сельское поселение","78626409"]
[41,"Некрасовский муниципальный район","Красный Профинтерн сельское поселение","78626444"]
[42,"Некрасовский муниципальный район","Некрасовский муниципальный район","78626000"]
[43,"Некрасовский муниципальный район","Некрасовское сельское поселение","78626457"]
[44,"Первомайский муниципальный район","Городское поселение п.Пречистое","78629151"]
[45,"Первомайский муниципальный район","Кукобойское сельское поселение","78629435"]
[46,"Первомайский муниципальный район","Первомайский муниципальный район","78629000"]
[47,"Первомайский муниципальный район","Пречистенское сельское поселение","78629450"]
[48,"Пошехонский муниципальный район","Белосельское сельское поселение","78634404"]
[49,"Пошехонский муниципальный район","Городское поселение Пошехонье","78634101"]
[50,"Пошехонский муниципальный район","Ермаковское сельское поселение","78634428"]
[51,"Пошехонский муниципальный район","Кременевское сельское поселение","78634460"]
[52,"Пошехонский муниципальный район","Пошехонский муниципальный район","78634000"]
[53,"Пошехонский муниципальный район","Пригородное сельское поселение","78634436"]
[54,"Ростовский муниципальный район","Городское поселение г.Ростов","78637101"]
[55,"Ростовский муниципальный район","Ишня сельское поселение","78637412"]
[56,"Ростовский муниципальный район","Петровское сельское поселение","78637441"]
[57,"Ростовский муниципальный район","Поречье-Рыбное сельское поселение","78637442"]
[58,"Ростовский муниципальный район","Ростовский муниципальный район","78637000"]
[59,"Ростовский муниципальный район","Семибратово сельское поселение","78637447"]
[60,"Рыбинский муниципальный район","Арефинское сельское поселение","78640410"]
[61,"Рыбинский муниципальный район","Волжское сельское поселение","78640415"]
[62,"Рыбинский муниципальный район","Глебовское сельское поселение","78640443"]
[63,"Рыбинский муниципальный район","Городское поселение Песочное","78640455"]
[64,"Рыбинский муниципальный район","Каменниковское сельское поселение","78640425"]
[65,"Рыбинский муниципальный район","Назаровское сельское поселение","78640430"]
[66,"Рыбинский муниципальный район","Огарковское сельское поселение","78640440"]
[67,"Рыбинский муниципальный район","Октябрьское сельское поселение","78640420"]
[68,"Рыбинский муниципальный район","Покровское сельское поселение","78640435"]
[69,"Рыбинский муниципальный район","Рыбинский муниципальный район","78640000"]
[70,"Рыбинский муниципальный район","Судоверфское сельское поселение","78640452"]
[71,"Рыбинский муниципальный район","Тихменевское сельское поселение","78640447"]
[72,"Тутаевский муниципальный район","Артемьевское сельское поселение","78643405"]
[73,"Тутаевский муниципальный район","Городское поселение г.Тутаев","78643101"]
[74,"Тутаевский муниципальный район","Константиновское сельское поселение","78643420"]
[75,"Тутаевский муниципальный район","Левобережное сельское поселение","78643460"]
[76,"Тутаевский муниципальный район","Тутаевский муниципальный район","78643000"]
[77,"Тутаевский муниципальный район","Чебаковское сельское поселение","78643450"]
[78,"Угличский муниципальный район","Головинское сельское поселение","78646440"]
[79,"Угличский муниципальный район","Городское поселение г.Углич","78646101"]
[80,"Угличский муниципальный район","Ильинское сельское поселение","78646420"]
[81,"Угличский муниципальный район","Отрадновское сельское поселение","78646475"]
[82,"Угличский муниципальный район","Слободское сельское поселение","78646410"]
[83,"Угличский муниципальный район","Угличский муниципальный район","78646000"]
[84,"Угличский муниципальный район","Улейминское сельское поселение","78646480"]
[85,"Ярославский муниципальный район","Городское поселение п. Лесная Поляна","78650155"]
[86,"Ярославский муниципальный район","Заволжское сельское поселение","78650410"]
[87,"Ярославский муниципальный район","Ивняковское сельское поселение","78650455"]
[88,"Ярославский муниципальный район","Карабихское сельское поселение","78650430"]
[89,"Ярославский муниципальный район","Кузнечихинское сельское поселение","78650435"]
[90,"Ярославский муниципальный район","Курбское сельское поселение","78650440"]
[91,"Ярославский муниципальный район","Некрасовское сельское поселение","78650470"]
[92,"Ярославский муниципальный район","Туношенское сельское поселение","78650495"]
[93,"Ярославский муниципальный район","Ярославский муниципальный район","78650000"]
[94,"город Переславль-Залесский","город Переславль-Залесский","78705000"]
[95,"город Рыбинск","город Рыбинск","78715000"]
[96,"город Ярославль","город Ярославль","78701000"]

{"sheet":"REESTR_MO_FILTER","index":42,"n_rows":0,"n_cols":0,"rows_kept":0,"cut":false,"hidden":true,"merged":[]}

{"sheet":"modfrmReestrMR","index":43,"n_rows":0,"n_cols":0,"rows_kept":0,"cut":false,"hidden":true,"merged":[]}

{"sheet":"modServiceModule","index":44,"n_rows":0,"n_cols":0,"rows_kept":0,"cut":false,"hidden":true,"merged":[]}

{"sheet":"modfrmCheckUpdates","index":45,"n_rows":0,"n_cols":0,"rows_kept":0,"cut":false,"hidden":true,"merged":[]}

{"sheet":"REESTR_DS","index":46,"n_rows":3,"n_cols":2,"rows_kept":3,"cut":false,"hidden":true,"merged":[]}
[]
[]
[null,"город Ярославль, город Ярославль (78701000);"]

{"sheet":"REESTR_CHS","index":47,"n_rows":0,"n_cols":0,"rows_kept":0,"cut":false,"hidden":true,"merged":[]}

{"sheet":"REESTR_LINK","index":48,"n_rows":3,"n_cols":3,"rows_kept":3,"cut":false,"hidden":true,"merged":[]}
["ID","LINK_NAME","REGION"]
[4189678,"https://portal.eias.ru/Portal/DownloadPage.aspx?type=12&guid=????????-????-????-????-????????????","ALL"]
[4190415,"https://eias.fstrf.ru/disclo/get_file?p_guid=????????-????-????-????-????????????","ALL"]